[Event "Open Nuevo Centro. Jornada 2"]
[Site "Chess.com"]
[Date "2020.06.26"]
[Round "2"]
[White "Montes Molina, Ivan"]
[Black "Rabbani Perez, Oumaima "]
[Result "1-0"]
[WhiteElo "1235"]
[BlackElo "731"]
[TimeControl "180+2"]
[EndTime "10:48:06 PDT"]
[Termination "Victoria de Ivanbarad por jaque mate"]

1. e4 {[%clk 0:03:01.9]} 1... e5 {[%clk 0:02:59.2]} 2. Nf3 {[%clk 0:02:58.5]}
2... Nf6 {[%clk 0:02:58.9]} 3. Nc3 {[%clk 0:02:57.1]} 3... Nc6 {[%clk
0:02:58.2]} 4. Nxe5 {[%clk 0:02:52.9]} 4... Nxe4 {[%clk 0:02:56.9]} 5. Nxc6
{[%clk 0:02:51.2]} 5... Nxc3 {[%clk 0:02:54.9]} 6. Nxd8 {[%clk 0:02:51.3]} 6...
Nxd1 {[%clk 0:02:49.4]} 7. Kxd1 {[%clk 0:02:40.2]} 7... Kxd8 {[%clk 0:02:47.9]}
8. d3 {[%clk 0:02:41.2]} 8... d6 {[%clk 0:02:47.6]} 9. Bf4 {[%clk 0:02:41.4]}
9... Bf5 {[%clk 0:02:43.8]} 10. Be2 {[%clk 0:02:42.5]} 10... Be7 {[%clk
0:02:41.8]} 11. Re1 {[%clk 0:02:42.5]} 11... Re8 {[%clk 0:02:39.9]} 12. Kd2
{[%clk 0:02:43.4]} 12... Kd7 {[%clk 0:02:39.4]} 13. h3 {[%clk 0:02:41.8]} 13...
h6 {[%clk 0:02:39]} 14. Bf3 {[%clk 0:02:35.3]} 14... Bf6 {[%clk 0:02:37.4]} 15.
c3 {[%clk 0:02:28.8]} 15... Rxe1 {[%clk 0:02:34]} 16. Rxe1 {[%clk 0:02:27.7]}
16... c6 {[%clk 0:02:34]} 17. Be4 {[%clk 0:02:26.7]} 17... Bxe4 {[%clk
0:02:32.8]} 18. Rxe4 {[%clk 0:02:27]} 18... Re8 {[%clk 0:02:32.2]} 19. Rxe8
{[%clk 0:02:27.7]} 19... Kxe8 {[%clk 0:02:31]} 20. Bxd6 {[%clk 0:02:29.1]} 20...
Kd7 {[%clk 0:02:26.6]} 21. Bf4 {[%clk 0:02:26.6]} 21... Bh4 {[%clk 0:02:21.1]}
22. g3 {[%clk 0:02:25.9]} 22... Bf6 {[%clk 0:02:17.4]} 23. d4 {[%clk 0:02:26.2]}
23... b6 {[%clk 0:02:07.8]} 24. Be5 {[%clk 0:02:26.4]} 24... Ke6 {[%clk
0:02:05]} 25. f4 {[%clk 0:02:25.9]} 25... Bxe5 {[%clk 0:02:03.3]} 26. dxe5
{[%clk 0:02:26.7]} 26... f6 {[%clk 0:01:59.9]} 27. exf6 {[%clk 0:02:25.9]} 27...
gxf6 {[%clk 0:01:58.9]} 28. Ke3 {[%clk 0:02:27.2]} 28... Kf5 {[%clk 0:01:58.7]}
29. g4+ {[%clk 0:02:27]} 29... Kg6 {[%clk 0:01:58.4]} 30. Ke4 {[%clk 0:02:27.3]}
30... h5 {[%clk 0:01:52.8]} 31. b4 {[%clk 0:02:27.2]} 31... hxg4 {[%clk
0:01:51.8]} 32. hxg4 {[%clk 0:02:27.5]} 32... a5 {[%clk 0:01:47.2]} 33. bxa5
{[%clk 0:02:25.2]} 33... bxa5 {[%clk 0:01:47.6]} 34. c4 {[%clk 0:02:26.2]} 34...
c5 {[%clk 0:01:40.9]} 35. a4 {[%clk 0:02:25.9]} 35... Kh6 {[%clk 0:01:33.8]} 36.
Kd5 {[%clk 0:02:26]} 36... f5 {[%clk 0:01:31.8]} 37. gxf5 {[%clk 0:02:25.5]}
37... Kh5 {[%clk 0:01:31]} 38. Kxc5 {[%clk 0:02:26.8]} 38... Kg4 {[%clk
0:01:31.3]} 39. Kd5 {[%clk 0:02:27.4]} 39... Kxf4 {[%clk 0:01:31.1]} 40. c5
{[%clk 0:02:29]} 40... Kxf5 {[%clk 0:01:31.4]} 41. c6 {[%clk 0:02:30.6]} 41...
Kf6 {[%clk 0:01:30.1]} 42. c7 {[%clk 0:02:32.2]} 42... Ke7 {[%clk 0:01:29.8]}
43. c8=Q {[%clk 0:02:32.4]} 43... Kf7 {[%clk 0:01:26.9]} 44. Qe6+ {[%clk
0:02:33]} 44... Kf8 {[%clk 0:01:25.3]} 45. Ke5 {[%clk 0:02:33.1]} 45... Kg7
{[%clk 0:01:24.7]} 46. Kf5 {[%clk 0:02:33.7]} 46... Kh7 {[%clk 0:01:24.2]} 47.
Qg6+ {[%clk 0:02:32.2]} 47... Kh8 {[%clk 0:01:22.4]} 48. Qg5 {[%clk 0:02:33.8]}
48... Kh7 {[%clk 0:01:22.2]} 49. Kf6 {[%clk 0:02:35.5]} 49... Kh8 {[%clk
0:01:22.3]} 50. Qg7# {[%clk 0:02:37.1]} 1

[Event "Open Nuevo Centro. Jornada 2"]
[Site "Chess.com"]
[Date "2020.06.26"]
[Round "2"]
[White "Donate Peris, Jose Manuel"]
[Black "Rodriguez, Mathias"]
[Result "0-1"]
[WhiteElo "1601"]
[BlackElo "1973"]
[TimeControl "180+2"]
[EndTime "10:48:13 PDT"]
[Termination "Victoria de niguil por abandono"]

1. d4 {[%clk 0:03:01.9]} 1... Nf6 {[%clk 0:02:59.5]} 2. c4 {[%clk 0:03:02.2]}
2... g6 {[%clk 0:03:00.4]} 3. Nc3 {[%clk 0:03:01]} 3... d5 {[%clk 0:03:00]} 4.
cxd5 {[%clk 0:03:00.3]} 4... Nxd5 {[%clk 0:03:01.9]} 5. e4 {[%clk 0:03:00.7]}
5... Nxc3 {[%clk 0:03:02.2]} 6. bxc3 {[%clk 0:03:00.9]} 6... Bg7 {[%clk
0:03:01.8]} 7. Be3 {[%clk 0:02:53]} 7... O-O {[%clk 0:03:00.5]} 8. Bc4 {[%clk
0:02:50.2]} 8... c5 {[%clk 0:03:00.9]} 9. Ne2 {[%clk 0:02:46.8]} 9... Nc6 {[%clk
0:03:01.2]} 10. O-O {[%clk 0:02:40.4]} 10... Qa5 {[%clk 0:03:01.5]} 11. dxc5
{[%clk 0:02:30.4]} 11... Rd8 {[%clk 0:02:43]} 12. Qc2 {[%clk 0:02:25.2]} 12...
Ne5 {[%clk 0:02:37.2]} 13. Bb3 {[%clk 0:02:21]} 13... b6 {[%clk 0:02:37.6]} 14.
cxb6 {[%clk 0:02:16.6]} 14... axb6 {[%clk 0:02:39.5]} 15. Nd4 {[%clk 0:02:13.1]}
15... Ba6 {[%clk 0:02:38.5]} 16. Rfd1 {[%clk 0:02:06]} 16... Rac8 {[%clk
0:02:39.3]} 17. Rac1 {[%clk 0:01:48.1]} 17... Ng4 {[%clk 0:02:38.2]} 18. Qb1
{[%clk 0:01:37.6]} 18... Nxe3 {[%clk 0:02:32.9]} 19. fxe3 {[%clk 0:01:37.5]}
19... Rxc3 {[%clk 0:02:27.4]} 20. Rxc3 {[%clk 0:01:33.8]} 20... Qxc3 {[%clk
0:02:29.3]} 21. Ne2 {[%clk 0:01:16.7]} 21... Qxe3+ {[%clk 0:02:20.3]} 22. Kh1
{[%clk 0:01:08.9]} 22... Rxd1+ {[%clk 0:02:19.2]} 23. Qxd1 {[%clk 0:01:08.2]}
23... Qxe2 {[%clk 0:02:19.5]} 24. Qd8+ {[%clk 0:01:07]} 24... Bf8 {[%clk
0:02:20.6]} 25. h3 {[%clk 0:01:07.2]} 25... Qxe4 {[%clk 0:02:20.1]} 26. Qxb6
{[%clk 0:01:00.4]} 26... Bb7 {[%clk 0:02:14.1]} 27. Qf2 {[%clk 0:00:56.2]} 27...
e6 {[%clk 0:02:13.3]} 28. a4 {[%clk 0:00:46.2]} 28... Bc5 {[%clk 0:02:11.6]} 29.
Qd2 {[%clk 0:00:40]} 29... Qb1+ {[%clk 0:01:53.8]} 0

[Event "Open Nuevo Centro. Jornada 2"]
[Site "Chess.com"]
[Date "2020.06.26"]
[Round "2"]
[White "Ferrando Lacruz, Nicolás "]
[Black "Morata Briones, Carlos"]
[Result "0-1"]
[WhiteElo "1196"]
[BlackElo "854"]
[TimeControl "180+2"]
[EndTime "10:48:15 PDT"]
[Termination "Victoria de CarlosMorata por jaque mate"]

1. d4 {[%clk 0:03:01.4]} 1... d5 {[%clk 0:02:59.9]} 2. Bf4 {[%clk 0:03:00.1]}
2... Bf5 {[%clk 0:03:00.1]} 3. Nf3 {[%clk 0:02:58.8]} 3... Nf6 {[%clk
0:02:54.7]} 4. e3 {[%clk 0:02:58.2]} 4... e6 {[%clk 0:02:52.6]} 5. Bd3 {[%clk
0:02:58.3]} 5... Bxd3 {[%clk 0:02:49.7]} 6. cxd3 {[%clk 0:02:56.8]} 6... Bb4+
{[%clk 0:02:47.2]} 7. Nbd2 {[%clk 0:02:55.8]} 7... O-O {[%clk 0:02:42.3]} 8. Ne5
{[%clk 0:02:51]} 8... Bd6 {[%clk 0:02:38.1]} 9. Ndf3 {[%clk 0:02:49.9]} 9...
Bxe5 {[%clk 0:02:36.3]} 10. dxe5 {[%clk 0:02:49.7]} 10... Nh5 {[%clk 0:02:34.6]}
11. Bg5 {[%clk 0:02:47.4]} 11... Qd7 {[%clk 0:02:30.8]} 12. Nd4 {[%clk
0:02:35.1]} 12... f6 {[%clk 0:02:12.9]} 13. Qxh5 {[%clk 0:02:09.6]} 13... fxg5
{[%clk 0:02:07.8]} 14. Qxg5 {[%clk 0:02:03.3]} 14... h6 {[%clk 0:02:07.7]} 15.
Qf4 {[%clk 0:02:01.1]} 15... Rxf4 {[%clk 0:02:06]} 16. exf4 {[%clk 0:02:00.3]}
16... Nc6 {[%clk 0:02:03.6]} 17. Nb5 {[%clk 0:01:54.7]} 17... Nb4 {[%clk
0:01:59.4]} 18. a4 {[%clk 0:01:45.9]} 18... Nxd3+ {[%clk 0:01:55.7]} 19. Kd2
{[%clk 0:01:40.7]} 19... Nxb2 {[%clk 0:01:53.9]} 20. Rab1 {[%clk 0:01:38.6]}
20... Nc4+ {[%clk 0:01:52.7]} 21. Ke1 {[%clk 0:01:37.9]} 21... a6 {[%clk
0:01:46.6]} 22. Nd4 {[%clk 0:01:35.3]} 22... Qxa4 {[%clk 0:01:40.3]} 23. Rxb7
{[%clk 0:01:31.9]} 23... Qa5+ {[%clk 0:01:37.8]} 24. Ke2 {[%clk 0:01:30.4]}
24... Qd2+ {[%clk 0:01:36.3]} 25. Kf3 {[%clk 0:01:27.8]} 25... Qd3+ {[%clk
0:01:35.4]} 26. Kg4 {[%clk 0:01:23]} 26... h5+ {[%clk 0:01:35.8]} 27. Kxh5
{[%clk 0:01:23.1]} 27... Qh7+ {[%clk 0:01:36.1]} 28. Kg4 {[%clk 0:01:23.3]}
28... Qg6+ {[%clk 0:01:35.4]} 29. Kh4 {[%clk 0:01:22.1]} 29... Qh6+ {[%clk
0:01:33.6]} 30. Kg4 {[%clk 0:01:21.3]} 30... Rf8 {[%clk 0:01:32.9]} 31. Rxc7
{[%clk 0:01:19.2]} 31... Qxf4+ {[%clk 0:01:31.8]} 32. Kh3 {[%clk 0:01:19.6]}
32... Nxe5 {[%clk 0:01:26.5]} 33. Nxe6 {[%clk 0:01:13.9]} 33... Qg4# {[%clk
0:01:24.3]} 0

[Event "Open Nuevo Centro. Jornada 2"]
[Site "Chess.com"]
[Date "2020.06.26"]
[Round "2"]
[White "Valverde Caballero, Rafael"]
[Black "Silva Rodriguez, Fernando"]
[Result "0-1"]
[WhiteElo "1902"]
[BlackElo "2503"]
[TimeControl "180+2"]
[EndTime "10:48:22 PDT"]
[Termination "Victoria de HarnFer por abandono"]

1. c4 {[%clk 0:02:59.4]} 1... c6 {[%clk 0:03:00.5]} 2. e4 {[%clk 0:02:59.8]}
2... d5 {[%clk 0:03:01.6]} 3. exd5 {[%clk 0:03:01.2]} 3... cxd5 {[%clk
0:03:03.5]} 4. d4 {[%clk 0:03:02.6]} 4... Nf6 {[%clk 0:03:03.1]} 5. Nc3 {[%clk
0:03:02.5]} 5... Nc6 {[%clk 0:03:04.5]} 6. Bg5 {[%clk 0:02:43.2]} 6... dxc4
{[%clk 0:02:59]} 7. Bxc4 {[%clk 0:02:42.8]} 7... h6 {[%clk 0:02:58.7]} 8. Bxf6
{[%clk 0:02:28.3]} 8... exf6 {[%clk 0:03:00.6]} 9. Nge2 {[%clk 0:01:58.1]} 9...
Be7 {[%clk 0:02:59.5]} 10. O-O {[%clk 0:01:56.8]} 10... O-O {[%clk 0:03:00.5]}
11. Bb3 {[%clk 0:01:48.2]} 11... Bg4 {[%clk 0:03:01.2]} 12. Qd3 {[%clk
0:01:44.3]} 12... Bd6 {[%clk 0:02:34.6]} 13. h3 {[%clk 0:01:23.8]} 13... Bh5
{[%clk 0:02:33.5]} 14. f4 {[%clk 0:00:59.5]} 14... Bxe2 {[%clk 0:02:08.1]} 15.
Nxe2 {[%clk 0:00:58]} 15... Qb6 {[%clk 0:02:10]} 16. Kh1 {[%clk 0:00:54.6]}
16... Rad8 {[%clk 0:02:10.2]} 17. Bc2 {[%clk 0:00:45.8]} 17... g6 {[%clk
0:02:07.7]} 18. a3 {[%clk 0:00:40.2]} 18... f5 {[%clk 0:02:04.3]} 19. b4 {[%clk
0:00:34.9]} 19... Be7 {[%clk 0:02:04.7]} 20. Bb3 {[%clk 0:00:35.6]} 20... Nxd4
{[%clk 0:02:00.6]} 21. Nxd4 {[%clk 0:00:33]} 21... Rxd4 {[%clk 0:02:02.5]} 22.
Qe3 {[%clk 0:00:25.9]} 22... Bf6 {[%clk 0:02:02.5]} 23. Rac1 {[%clk 0:00:18.4]}
23... Rfd8 {[%clk 0:02:00.6]} 24. Qg3 {[%clk 0:00:18]} 24... Kg7 {[%clk
0:02:00.8]} 25. h4 {[%clk 0:00:18.7]} 25... h5 {[%clk 0:02:00]} 26. Qf3 {[%clk
0:00:16]} 26... Rd3 {[%clk 0:01:59.8]} 27. Qf2 {[%clk 0:00:16.2]} 27... Qxf2
{[%clk 0:01:57.8]} 28. Rxf2 {[%clk 0:00:16.7]} 28... Rxb3 {[%clk 0:01:59.7]} 29.
Rfc2 {[%clk 0:00:17.2]} 29... Rxa3 {[%clk 0:02:00.2]} 0

[Event "Open Nuevo Centro. Jornada 2"]
[Site "Chess.com"]
[Date "2020.06.26"]
[Round "2"]
[White "Cayon Pelaez, Pablo"]
[Black "Macias Pino, Diego"]
[Result "0-1"]
[WhiteElo "1763"]
[BlackElo "2198"]
[TimeControl "180+2"]
[EndTime "10:48:26 PDT"]
[Termination "Victoria de jesuimafe por abandono"]

1. d4 {[%clk 0:03:01.9]} 1... d5 {[%clk 0:02:53.5]} 2. c4 {[%clk 0:03:02.5]}
2... dxc4 {[%clk 0:02:55.4]} 3. e4 {[%clk 0:03:01.8]} 3... b5 {[%clk 0:02:39.8]}
4. a4 {[%clk 0:03:02.2]} 4... c6 {[%clk 0:02:40.6]} 5. e5 {[%clk 0:02:54.2]}
5... Bb7 {[%clk 0:02:37.3]} 6. Nc3 {[%clk 0:02:46.1]} 6... a6 {[%clk 0:02:38.1]}
7. Nf3 {[%clk 0:02:37.2]} 7... e6 {[%clk 0:02:37.2]} 8. Be3 {[%clk 0:02:37.1]}
8... Bb4 {[%clk 0:02:24.5]} 9. Be2 {[%clk 0:02:34.2]} 9... Ne7 {[%clk
0:02:23.5]} 10. O-O {[%clk 0:02:34.1]} 10... Bxc3 {[%clk 0:02:24.2]} 11. bxc3
{[%clk 0:02:34.7]} 11... Nd5 {[%clk 0:02:25.7]} 12. Bd2 {[%clk 0:02:31.2]} 12...
Nd7 {[%clk 0:02:26.3]} 13. h3 {[%clk 0:02:23.8]} 13... h6 {[%clk 0:02:27]} 14.
Nh2 {[%clk 0:02:24.4]} 14... c5 {[%clk 0:02:08.2]} 15. Qc2 {[%clk 0:01:56.9]}
15... cxd4 {[%clk 0:02:04]} 16. cxd4 {[%clk 0:01:58]} 16... N7b6 {[%clk
0:01:56.9]} 17. Rfb1 {[%clk 0:01:34.1]} 17... Bc6 {[%clk 0:01:42.4]} 18. a5
{[%clk 0:01:13.6]} 18... Nc8 {[%clk 0:01:21.5]} 19. Bf3 {[%clk 0:01:14.3]} 19...
Nce7 {[%clk 0:01:21.7]} 20. Ng4 {[%clk 0:01:10]} 20... Nf5 {[%clk 0:01:18.4]}
21. Be3 {[%clk 0:01:01]} 21... h5 {[%clk 0:01:02.8]} 22. Bxd5 {[%clk 0:00:45]}
22... Qxd5 {[%clk 0:01:04.7]} 0

[Event "Open Nuevo Centro. Jornada 2"]
[Site "Chess.com"]
[Date "2020.06.26"]
[Round "2"]
[White "Ulla Centelles, Llorens"]
[Black "Más Ripoll, Vicente"]
[Result "1-0"]
[WhiteElo "1581"]
[BlackElo "1005"]
[TimeControl "180+2"]
[EndTime "10:48:26 PDT"]
[Termination "Victoria de kratos82 por tiempo"]

1. e4 {[%clk 0:03:01.9]} 1... c5 {[%clk 0:03:00.3]} 2. d3 {[%clk 0:03:02.6]}
2... d5 {[%clk 0:02:58.8]} 3. exd5 {[%clk 0:03:02.7]} 3... Qxd5 {[%clk
0:02:59.4]} 4. Nc3 {[%clk 0:03:01.7]} 4... Qd8 {[%clk 0:02:57.9]} 5. Nf3 {[%clk
0:03:02.6]} 5... Nc6 {[%clk 0:02:58.1]} 6. Be2 {[%clk 0:03:03.4]} 6... h6 {[%clk
0:02:55.7]} 7. O-O {[%clk 0:03:04.1]} 7... Bg4 {[%clk 0:02:55.3]} 8. Bf4 {[%clk
0:03:01]} 8... a6 {[%clk 0:02:53.9]} 9. Qd2 {[%clk 0:02:59.7]} 9... e6 {[%clk
0:02:40]} 10. Ne4 {[%clk 0:03:00]} 10... Nf6 {[%clk 0:02:31.7]} 11. Rad1 {[%clk
0:02:52.2]} 11... Bxf3 {[%clk 0:02:22.4]} 12. Bxf3 {[%clk 0:02:51.9]} 12... Nd4
{[%clk 0:02:16.6]} 13. Nxf6+ {[%clk 0:02:51.2]} 13... Qxf6 {[%clk 0:01:54.6]}
14. Bxb7 {[%clk 0:02:51.4]} 14... Qxf4 {[%clk 0:01:44.8]} 15. Qxf4 {[%clk
0:02:42.9]} 15... Ne2+ {[%clk 0:01:44.8]} 16. Kh1 {[%clk 0:02:43.9]} 16... Nxf4
{[%clk 0:01:45.3]} 17. Bxa8 {[%clk 0:02:44.9]} 17... Be7 {[%clk 0:01:40]} 18. d4
{[%clk 0:02:45.8]} 18... O-O {[%clk 0:01:36.5]} 19. dxc5 {[%clk 0:02:45.6]}
19... Rxa8 {[%clk 0:01:30.6]} 20. c6 {[%clk 0:02:46.6]} 20... Rc8 {[%clk
0:01:23.4]} 21. Rd7 {[%clk 0:02:47.4]} 21... Kf8 {[%clk 0:01:13.7]} 22. Rfd1
{[%clk 0:02:45]} 22... Ke8 {[%clk 0:01:07.2]} 23. c7 {[%clk 0:02:45.8]} 23...
Nd5 {[%clk 0:00:58.9]} 24. R7xd5 {[%clk 0:02:41.3]} 24... exd5 {[%clk 0:00:59]}
25. Rxd5 {[%clk 0:02:42.2]} 25... Rxc7 {[%clk 0:01:00.2]} 26. h3 {[%clk
0:02:43.1]} 26... Rd7 {[%clk 0:00:55.8]} 27. Ra5 {[%clk 0:02:43.6]} 27... Ra7
{[%clk 0:00:54.8]} 28. g3 {[%clk 0:02:44.1]} 28... Bb4 {[%clk 0:00:54.7]} 29.
Re5+ {[%clk 0:02:43.6]} 29... Be7 {[%clk 0:00:50.3]} 30. c4 {[%clk 0:02:42.9]}
30... Rb7 {[%clk 0:00:47.3]} 31. b3 {[%clk 0:02:43.1]} 31... Rd7 {[%clk
0:00:47.9]} 32. f4 {[%clk 0:02:42.6]} 32... Rd1+ {[%clk 0:00:48.1]} 33. Kg2
{[%clk 0:02:43.4]} 33... Rd2+ {[%clk 0:00:49.1]} 34. Kf3 {[%clk 0:02:44]} 34...
Rxa2 {[%clk 0:00:50]} 35. c5 {[%clk 0:02:44.6]} 35... Ra3 {[%clk 0:00:44.2]} 36.
Re3 {[%clk 0:02:43.6]} 36... Kf8 {[%clk 0:00:41.2]} 37. c6 {[%clk 0:02:44.5]}
37... Bc5 {[%clk 0:00:37.3]} 38. c7 {[%clk 0:02:43.5]} 1

[Event "Open Nuevo Centro. Jornada 2"]
[Site "Chess.com"]
[Date "2020.06.26"]
[Round "2"]
[White "Cinà Asensio, Luca "]
[Black "Méndez Giménez , Néstor Emmanuel"]
[Result "0-1"]
[WhiteElo "496"]
[BlackElo "1100"]
[TimeControl "180+2"]
[EndTime "10:48:41 PDT"]
[Termination "Victoria de NestorMendez8 por jaque mate"]

1. e4 {[%clk 0:02:56.9]} 1... e6 {[%clk 0:03:01.9]} 2. d4 {[%clk 0:02:56.6]}
2... c5 {[%clk 0:03:02]} 3. Nf3 {[%clk 0:02:55.4]} 3... Nc6 {[%clk 0:03:01.7]}
4. Be3 {[%clk 0:02:53.2]} 4... Qb6 {[%clk 0:03:00.5]} 5. Nbd2 {[%clk 0:02:50.7]}
5... cxd4 {[%clk 0:02:52.4]} 6. Nxd4 {[%clk 0:02:49.3]} 6... Nxd4 {[%clk
0:02:52.3]} 7. Bxd4 {[%clk 0:02:49.3]} 7... Qxd4 {[%clk 0:02:52.3]} 8. Nf3
{[%clk 0:02:48]} 8... Qxe4+ {[%clk 0:02:49.8]} 9. Be2 {[%clk 0:02:47]} 9... Nf6
{[%clk 0:02:44.2]} 10. Ng5 {[%clk 0:02:41.7]} 10... Qb4+ {[%clk 0:02:42.1]} 11.
c3 {[%clk 0:02:36.8]} 11... Qxb2 {[%clk 0:02:39.3]} 12. O-O {[%clk 0:02:30.3]}
12... Be7 {[%clk 0:02:34.6]} 13. Qe1 {[%clk 0:02:27.3]} 13... O-O {[%clk
0:02:30.4]} 14. Qd2 {[%clk 0:02:27.2]} 14... Qb6 {[%clk 0:02:26.2]} 15. Rab1
{[%clk 0:02:16.2]} 15... Qc6 {[%clk 0:02:23.5]} 16. Bb5 {[%clk 0:02:13.7]} 16...
Ne4 {[%clk 0:02:07.1]} 17. Nxe4 {[%clk 0:02:11.7]} 17... Qxe4 {[%clk 0:02:07.4]}
18. f3 {[%clk 0:02:11.5]} 18... Bc5+ {[%clk 0:01:59.7]} 19. Kh1 {[%clk
0:02:08.1]} 19... Qg6 {[%clk 0:01:56.3]} 20. g3 {[%clk 0:02:07]} 20... b6 {[%clk
0:01:54.2]} 21. f4 {[%clk 0:01:57.1]} 21... Bb7+ {[%clk 0:01:52.4]} 22. Rf3
{[%clk 0:01:41.1]} 22... Qxb1+ {[%clk 0:01:37.4]} 23. Kg2 {[%clk 0:01:38.6]}
23... Bxf3+ {[%clk 0:01:35.6]} 24. Kxf3 {[%clk 0:01:37.4]} 24... Qxb5 {[%clk
0:01:34.8]} 25. Qc1 {[%clk 0:01:27.5]} 25... Qd3+ {[%clk 0:01:33.1]} 26. Kg2
{[%clk 0:01:24.7]} 26... Qe2+ {[%clk 0:01:32.1]} 27. Kh3 {[%clk 0:01:24]} 27...
e5 {[%clk 0:01:26.5]} 28. fxe5 {[%clk 0:01:22.7]} 28... Qxe5 {[%clk 0:01:25]}
29. Qg1 {[%clk 0:01:18.3]} 29... Bxg1 {[%clk 0:01:21.9]} 30. Kg2 {[%clk
0:01:16.4]} 30... Qxc3 {[%clk 0:01:19.6]} 31. Kxg1 {[%clk 0:01:15.8]} 31... Qb2
{[%clk 0:01:20.1]} 32. Kf1 {[%clk 0:01:14.7]} 32... Qxa2 {[%clk 0:01:20.6]} 33.
Kg1 {[%clk 0:01:15]} 33... b5 {[%clk 0:01:21.7]} 34. Kf1 {[%clk 0:01:07.6]}
34... b4 {[%clk 0:01:23.6]} 35. Kg1 {[%clk 0:01:01.8]} 35... b3 {[%clk
0:01:25.5]} 36. Kf1 {[%clk 0:01:01.6]} 36... Rac8 {[%clk 0:01:27.4]} 37. Ke1
{[%clk 0:01:01.9]} 37... Rc1# {[%clk 0:01:28.6]} 0

[Event "Open Nuevo Centro. Jornada 2"]
[Site "Chess.com"]
[Date "2020.06.26"]
[Round "2"]
[White "Martínez Carvajal, Juan Francisco"]
[Black "Kovacevic, Slobodan"]
[Result "0-1"]
[WhiteElo "1767"]
[BlackElo "2110"]
[TimeControl "180+2"]
[EndTime "10:48:42 PDT"]
[Termination "Victoria de nikko110 por jaque mate"]

1. Nf3 {[%clk 0:03:01.9]} 1... c5 {[%clk 0:02:59]} 2. c4 {[%clk 0:03:02.5]} 2...
b6 {[%clk 0:02:58.1]} 3. g3 {[%clk 0:03:01.7]} 3... Bb7 {[%clk 0:02:57.4]} 4.
Bg2 {[%clk 0:03:02.7]} 4... Nf6 {[%clk 0:02:56.8]} 5. O-O {[%clk 0:03:03.6]}
5... e6 {[%clk 0:02:56.1]} 6. Nc3 {[%clk 0:02:57.8]} 6... a6 {[%clk 0:02:54.4]}
7. Re1 {[%clk 0:02:35.8]} 7... Be7 {[%clk 0:02:52.4]} 8. e4 {[%clk 0:02:31.8]}
8... d6 {[%clk 0:02:51.6]} 9. d4 {[%clk 0:02:29.3]} 9... cxd4 {[%clk 0:02:50.8]}
10. Nxd4 {[%clk 0:02:30.3]} 10... Qc7 {[%clk 0:02:49.1]} 11. b3 {[%clk
0:02:25.5]} 11... O-O {[%clk 0:02:47]} 12. Bb2 {[%clk 0:01:57.3]} 12... Nbd7
{[%clk 0:02:44.6]} 13. Rc1 {[%clk 0:01:55.7]} 13... Rac8 {[%clk 0:02:43.3]} 14.
f4 {[%clk 0:01:29.6]} 14... Rfd8 {[%clk 0:02:40.6]} 15. Rc2 {[%clk 0:01:10.1]}
15... Qb8 {[%clk 0:02:38.2]} 16. Rd2 {[%clk 0:01:10.2]} 16... Bf8 {[%clk
0:02:31]} 17. Na4 {[%clk 0:01:10.8]} 17... Ba8 {[%clk 0:02:27.5]} 18. Kh1 {[%clk
0:00:59.3]} 18... b5 {[%clk 0:02:24.9]} 19. cxb5 {[%clk 0:00:53.9]} 19... axb5
{[%clk 0:02:23.7]} 20. Nc3 {[%clk 0:00:54.3]} 20... b4 {[%clk 0:02:22.7]} 21.
Ncb5 {[%clk 0:00:54.4]} 21... e5 {[%clk 0:02:19.5]} 22. Nxd6 {[%clk 0:00:34.9]}
22... Bxd6 {[%clk 0:02:17.4]} 23. Nf5 {[%clk 0:00:28.6]} 23... Bf8 {[%clk
0:01:59.7]} 24. fxe5 {[%clk 0:00:29.1]} 24... Nxe5 {[%clk 0:01:56.2]} 25. Rxd8
{[%clk 0:00:13.2]} 25... Rxd8 {[%clk 0:01:54.5]} 26. Qc2 {[%clk 0:00:14.5]}
26... Nd3 {[%clk 0:01:46.6]} 27. Rd1 {[%clk 0:00:09.2]} 27... Nxb2 {[%clk
0:01:45]} 28. Rxd8 {[%clk 0:00:10]} 28... Qxd8 {[%clk 0:01:42.8]} 29. Qxb2
{[%clk 0:00:10.7]} 29... Qd1+ {[%clk 0:01:41.3]} 30. Bf1 {[%clk 0:00:11.3]}
30... Qxf1# {[%clk 0:01:39.7]} 0

[Event "Open Nuevo Centro. Jornada 2"]
[Site "Chess.com"]
[Date "2020.06.26"]
[Round "2"]
[White "Lopez Mateo, Juan Carlos"]
[Black "Birnoveanu, Petru"]
[Result "1-0"]
[WhiteElo "1992"]
[BlackElo "1694"]
[TimeControl "180+2"]
[EndTime "10:48:43 PDT"]
[Termination "Victoria de Tarantantinov por tiempo"]

1. e4 {[%clk 0:03:01.9]} 1... Nc6 {[%clk 0:03:00]} 2. Nf3 {[%clk 0:03:02.7]}
2... f5 {[%clk 0:02:59.8]} 3. exf5 {[%clk 0:03:02.3]} 3... d5 {[%clk 0:02:59.8]}
4. d4 {[%clk 0:02:58.6]} 4... Bxf5 {[%clk 0:02:59.6]} 5. Bb5 {[%clk 0:02:58.3]}
5... Bg4 {[%clk 0:02:52.3]} 6. O-O {[%clk 0:02:53.3]} 6... Qd6 {[%clk
0:02:44.1]} 7. h3 {[%clk 0:02:27.7]} 7... Bxf3 {[%clk 0:02:42.9]} 8. Qxf3 {[%clk
0:02:28.7]} 8... Nf6 {[%clk 0:02:42.8]} 9. Bf4 {[%clk 0:02:18.7]} 9... Qd7
{[%clk 0:02:37.7]} 10. c4 {[%clk 0:02:13.7]} 10... a6 {[%clk 0:02:35.3]} 11.
cxd5 {[%clk 0:01:45.1]} 11... Nxd5 {[%clk 0:02:30.1]} 12. Bxc6 {[%clk 0:01:41]}
12... Qxc6 {[%clk 0:02:20.4]} 13. Rc1 {[%clk 0:01:41.3]} 13... Qd7 {[%clk
0:02:20.2]} 14. Be5 {[%clk 0:01:38.6]} 14... c6 {[%clk 0:02:06.7]} 15. Qh5+
{[%clk 0:01:26.2]} 15... g6 {[%clk 0:01:59.3]} 16. Qh4 {[%clk 0:01:26.5]} 16...
Rg8 {[%clk 0:01:46.4]} 17. Qxh7 {[%clk 0:01:22.5]} 17... Qe6 {[%clk 0:01:42.2]}
18. Nc3 {[%clk 0:01:15.4]} 18... Nf6 {[%clk 0:01:38.4]} 19. Bxf6 {[%clk
0:01:09.2]} 19... exf6 {[%clk 0:01:19]} 20. Re1 {[%clk 0:01:08]} 1